[Event "Titled Tuesday Blitz August 16 Late 2022"]
[White "Ferreira, Vitor Hugo Vieira"]
[Black "Wiewiora, Eneasz"]
[WhiteFideId "2119765"]
[BlackFideId "1140396"]
[WhiteElo "2168"]
[BlackElo "2291"]
[Result "0-1"]
[Round "04"]
[TimeControl "180+1"]
[Date "2022.08.18"]
[WhiteClock "0:00:00"]
[BlackClock "0:00:00"]

1. d4 {[%clk 0:00:00]}  d6 {[%clk 0:00:00]} 2. e4 {[%clk 0:00:00]}  Nf6 {[%clk 0:00:00]} 3. Nc3 {[%clk 0:00:00]}  e5 {[%clk 0:00:00]} 4. Nf3 {[%clk 0:00:00]}  Nbd7 {[%clk 0:00:00]} 5. Be2 {[%clk 0:00:00]}  Be7 {[%clk 0:00:00]} 6. O-O {[%clk 0:00:00]}  O-O {[%clk 0:00:00]} 7. h3 {[%clk 0:00:00]}  c6 {[%clk 0:00:00]} 8. Be3 {[%clk 0:00:00]}  b5 {[%clk 0:00:00]} 9. a3 {[%clk 0:00:00]}  a6 {[%clk 0:00:00]} 10. Qd2 {[%clk 0:00:00]}  Re8 {[%clk 0:00:00]} 11. Rfe1 {[%clk 0:00:00]}  Qc7 {[%clk 0:00:00]} 12. Rad1 {[%clk 0:00:00]}  Bf8 {[%clk 0:00:00]} 13. dxe5 {[%clk 0:00:00]}  dxe5 {[%clk 0:00:00]} 14. Bf1 {[%clk 0:00:00]}  a5 {[%clk 0:00:00]} 15. Bg5 {[%clk 0:00:00]}  h6 {[%clk 0:00:00]} 16. Bh4 {[%clk 0:00:00]}  b4 {[%clk 0:00:00]} 17. axb4 {[%clk 0:00:00]}  axb4 {[%clk 0:00:00]} 18. Nb1 {[%clk 0:00:00]}  Nh5 {[%clk 0:00:00]} 19. g4 {[%clk 0:00:00]}  Nf4 {[%clk 0:00:00]} 20. Bg3 {[%clk 0:00:00]}  Ng6 {[%clk 0:00:00]} 21. c3 {[%clk 0:00:00]}  bxc3 {[%clk 0:00:00]} 22. Nxc3 {[%clk 0:00:00]}  Nc5 {[%clk 0:00:00]} 23. Bc4 {[%clk 0:00:00]}  Be6 {[%clk 0:00:00]} 24. Bxe6 {[%clk 0:00:00]}  Nxe6 {[%clk 0:00:00]} 25. Qd7 {[%clk 0:00:00]}  Qb6 {[%clk 0:00:00]} 26. Na4 {[%clk 0:00:00]}  Qb4 {[%clk 0:00:00]} 27. Nc3 {[%clk 0:00:00]}  Qb6 {[%clk 0:00:00]} 28. Na4 {[%clk 0:00:00]}  Qa6 {[%clk 0:00:00]} 29. Ra1 {[%clk 0:00:00]}  Rad8 {[%clk 0:00:00]} 30. Nc5 {[%clk 0:00:00]}  Qb5 {[%clk 0:00:00]} 0-1


[Site "https://www.chess.com"]

[Event "Titled Tuesday Blitz August 16 Late 2022"]
[White "Foerster-Yialamas, Lucas"]
[Black "Carbone, Diego"]
[WhiteFideId "30901774"]
[BlackFideId "3002179"]
[WhiteElo "1804"]
[BlackElo "2199"]
[Result "1-0"]
[Round "04"]
[TimeControl "180+1"]
[Date "2022.08.18"]
[WhiteClock "0:00:00"]
[BlackClock "0:00:00"]

1. e4 {[%clk 0:00:00]}  e5 {[%clk 0:00:00]} 2. Nf3 {[%clk 0:00:00]}  Nc6 {[%clk 0:00:00]} 3. Bb5 {[%clk 0:00:00]}  a6 {[%clk 0:00:00]} 4. Bxc6 {[%clk 0:00:00]}  dxc6 {[%clk 0:00:00]} 5. O-O {[%clk 0:00:00]}  Bg4 {[%clk 0:00:00]} 6. h3 {[%clk 0:00:00]}  h5 {[%clk 0:00:00]} 7. c3 {[%clk 0:00:00]}  Qf6 {[%clk 0:00:00]} 8. d4 {[%clk 0:00:00]}  exd4 {[%clk 0:00:00]} 9. cxd4 {[%clk 0:00:00]}  O-O-O {[%clk 0:00:00]} 10. Be3 {[%clk 0:00:00]}  Ne7 {[%clk 0:00:00]} 11. Re1 {[%clk 0:00:00]}  Bxf3 {[%clk 0:00:00]} 12. Qxf3 {[%clk 0:00:00]}  Qxf3 {[%clk 0:00:00]} 13. gxf3 {[%clk 0:00:00]}  Ng6 {[%clk 0:00:00]} 14. Nc3 {[%clk 0:00:00]}  Nh4 {[%clk 0:00:00]} 15. Red1 {[%clk 0:00:00]}  Nxf3+ {[%clk 0:00:00]} 16. Kf1 {[%clk 0:00:00]}  Be7 {[%clk 0:00:00]} 17. d5 {[%clk 0:00:00]}  cxd5 {[%clk 0:00:00]} 18. Nxd5 {[%clk 0:00:00]}  Bd6 {[%clk 0:00:00]} 19. Rac1 {[%clk 0:00:00]}  Kb8 {[%clk 0:00:00]} 20. Ke2 {[%clk 0:00:00]}  Nh4 {[%clk 0:00:00]} 21. Bg5 {[%clk 0:00:00]}  Rde8 {[%clk 0:00:00]} 22. f3 {[%clk 0:00:00]}  Ng6 {[%clk 0:00:00]} 23. Be3 {[%clk 0:00:00]}  f6 {[%clk 0:00:00]} 24. a3 {[%clk 0:00:00]}  Ne7 {[%clk 0:00:00]} 25. b4 {[%clk 0:00:00]}  Nxd5 {[%clk 0:00:00]} 26. Rxd5 {[%clk 0:00:00]}  g5 {[%clk 0:00:00]} 27. Bc5 {[%clk 0:00:00]}  Bf4 {[%clk 0:00:00]} 28. Be3 {[%clk 0:00:00]}  Be5 {[%clk 0:00:00]} 29. Bd4 {[%clk 0:00:00]}  Bxd4 {[%clk 0:00:00]} 30. Rxd4 {[%clk 0:00:00]}  Re7 {[%clk 0:00:00]} 31. Ke3 {[%clk 0:00:00]}  Rhe8 {[%clk 0:00:00]} 32. Rc5 {[%clk 0:00:00]}  Re5 {[%clk 0:00:00]} 33. Rxe5 {[%clk 0:00:00]}  Rxe5 {[%clk 0:00:00]} 34. Rd7 {[%clk 0:00:00]}  Ka7 {[%clk 0:00:00]} 35. Rf7 {[%clk 0:00:00]}  Re6 {[%clk 0:00:00]} 36. h4 {[%clk 0:00:00]}  Kb6 {[%clk 0:00:00]} 37. Rh7 {[%clk 0:00:00]}  gxh4 {[%clk 0:00:00]} 38. Rxh5 {[%clk 0:00:00]}  Re5 {[%clk 0:00:00]} 39. Rxh4 {[%clk 0:00:00]}  Kb5 {[%clk 0:00:00]} 40. Rh7 {[%clk 0:00:00]}  Ka4 {[%clk 0:00:00]} 41. Rxc7 {[%clk 0:00:00]}  Rb5 {[%clk 0:00:00]} 42. Rc3 {[%clk 0:00:00]}  a5 {[%clk 0:00:00]} 43. bxa5 {[%clk 0:00:00]}  Kxa5 {[%clk 0:00:00]} 44. Kf4 {[%clk 0:00:00]}  Ka4 {[%clk 0:00:00]} 45. Kg4 {[%clk 0:00:00]}  Re5 {[%clk 0:00:00]} 46. Re3 {[%clk 0:00:00]}  b5 {[%clk 0:00:00]} 47. f4 {[%clk 0:00:00]}  Rc5 {[%clk 0:00:00]} 48. e5 {[%clk 0:00:00]}  fxe5 {[%clk 0:00:00]} 49. fxe5 {[%clk 0:00:00]}  Rc1 {[%clk 0:00:00]} 50. e6 {[%clk 0:00:00]} 1-0


[Site "https://www.chess.com"]

[Event "Titled Tuesday Blitz August 16 Late 2022"]
[White "Gascon Del Nogal, Jose Rafael"]
[Black "Gallana, Marco"]
[WhiteFideId "3902463"]
[BlackFideId "824542"]
[WhiteElo "2473"]
[BlackElo "2290"]
[Result "0-1"]
[Round "04"]
[TimeControl "180+1"]
[Date "2022.08.18"]
[WhiteClock "0:00:00"]
[BlackClock "0:00:00"]

1. e4 {[%clk 0:00:00]}  c5 {[%clk 0:00:00]} 2. Nf3 {[%clk 0:00:00]}  Nc6 {[%clk 0:00:00]} 3. d4 {[%clk 0:00:00]}  cxd4 {[%clk 0:00:00]} 4. Nxd4 {[%clk 0:00:00]}  e5 {[%clk 0:00:00]} 5. Nb5 {[%clk 0:00:00]}  d6 {[%clk 0:00:00]} 6. N1c3 {[%clk 0:00:00]}  a6 {[%clk 0:00:00]} 7. Na3 {[%clk 0:00:00]}  Nf6 {[%clk 0:00:00]} 8. Bg5 {[%clk 0:00:00]}  Be7 {[%clk 0:00:00]} 9. Bxf6 {[%clk 0:00:00]}  Bxf6 {[%clk 0:00:00]} 10. Nc4 {[%clk 0:00:00]}  O-O {[%clk 0:00:00]} 11. Qxd6 {[%clk 0:00:00]}  Nd4 {[%clk 0:00:00]} 12. O-O-O {[%clk 0:00:00]}  Be6 {[%clk 0:00:00]} 13. Nd5 {[%clk 0:00:00]}  Bg5+ {[%clk 0:00:00]} 14. Kb1 {[%clk 0:00:00]}  b5 {[%clk 0:00:00]} 15. Qxd8 {[%clk 0:00:00]}  Bxd8 {[%clk 0:00:00]} 16. Nxe5 {[%clk 0:00:00]}  Bxd5 {[%clk 0:00:00]} 17. exd5 {[%clk 0:00:00]}  Nf5 {[%clk 0:00:00]} 18. Bd3 {[%clk 0:00:00]}  Nd6 {[%clk 0:00:00]} 19. Rhe1 {[%clk 0:00:00]}  g6 {[%clk 0:00:00]} 20. Nd7 {[%clk 0:00:00]}  Re8 {[%clk 0:00:00]} 21. Rxe8+ {[%clk 0:00:00]}  Nxe8 {[%clk 0:00:00]} 22. Re1 {[%clk 0:00:00]}  Nd6 {[%clk 0:00:00]} 23. Ne5 {[%clk 0:00:00]}  Bf6 {[%clk 0:00:00]} 24. c3 {[%clk 0:00:00]}  Re8 {[%clk 0:00:00]} 25. f4 {[%clk 0:00:00]}  Kg7 {[%clk 0:00:00]} 26. Kc2 {[%clk 0:00:00]}  g5 {[%clk 0:00:00]} 27. g3 {[%clk 0:00:00]}  h5 {[%clk 0:00:00]} 28. Kd2 {[%clk 0:00:00]}  h4 {[%clk 0:00:00]} 29. Ng4 {[%clk 0:00:00]}  Rh8 {[%clk 0:00:00]} 30. Nxf6 {[%clk 0:00:00]}  Kxf6 {[%clk 0:00:00]} 31. fxg5+ {[%clk 0:00:00]}  Kxg5 {[%clk 0:00:00]} 32. gxh4+ {[%clk 0:00:00]}  Rxh4 {[%clk 0:00:00]} 33. Re2 {[%clk 0:00:00]}  Kf6 {[%clk 0:00:00]} 34. b3 {[%clk 0:00:00]}  a5 {[%clk 0:00:00]} 35. a3 {[%clk 0:00:00]}  a4 {[%clk 0:00:00]} 36. Kc2 {[%clk 0:00:00]}  Rh3 {[%clk 0:00:00]} 37. bxa4 {[%clk 0:00:00]}  bxa4 {[%clk 0:00:00]} 38. c4 {[%clk 0:00:00]}  Nb7 {[%clk 0:00:00]} 39. Rf2+ {[%clk 0:00:00]}  Ke7 {[%clk 0:00:00]} 40. Kc3 {[%clk 0:00:00]}  Nc5 {[%clk 0:00:00]} 41. Rd2 {[%clk 0:00:00]}  Ne4+ {[%clk 0:00:00]} 42. Kc2 {[%clk 0:00:00]}  Nxd2 {[%clk 0:00:00]} 43. Kxd2 {[%clk 0:00:00]}  Rxh2+ {[%clk 0:00:00]} 44. Ke3 {[%clk 0:00:00]}  Kd6 {[%clk 0:00:00]} 45. Kd4 {[%clk 0:00:00]}  Rh4+ {[%clk 0:00:00]} 46. Ke3 {[%clk 0:00:00]}  Kc5 {[%clk 0:00:00]} 47. Kf3 {[%clk 0:00:00]}  Rd4 {[%clk 0:00:00]} 48. Be2 {[%clk 0:00:00]}  Rd2 {[%clk 0:00:00]} 49. Ke3 {[%clk 0:00:00]}  Ra2 {[%clk 0:00:00]} 50. Ke4 {[%clk 0:00:00]}  Rxa3 {[%clk 0:00:00]} 51. Bg4 {[%clk 0:00:00]}  Rc3 {[%clk 0:00:00]} 52. Ke5 {[%clk 0:00:00]}  Rxc4 {[%clk 0:00:00]} 53. Bf5 {[%clk 0:00:00]}  Rd4 {[%clk 0:00:00]} 54. d6 {[%clk 0:00:00]}  Rxd6 {[%clk 0:00:00]} 0-1


[Site "https://www.chess.com"]

[Event "Titled Tuesday Blitz August 16 Late 2022"]
[White "Gheorghiu, Calin"]
[Black "Lagowski, Patryk"]
[WhiteFideId "1200305"]
[BlackFideId "1114611"]
[WhiteElo "2168"]
[BlackElo "2274"]
[Result "1-0"]
[Round "04"]
[TimeControl "180+1"]
[Date "2022.08.18"]
[WhiteClock "0:00:00"]
[BlackClock "0:00:00"]

1. d4 {[%clk 0:00:00]}  g6 {[%clk 0:00:00]} 2. e4 {[%clk 0:00:00]}  Bg7 {[%clk 0:00:00]} 3. Nc3 {[%clk 0:00:00]}  d6 {[%clk 0:00:00]} 4. f4 {[%clk 0:00:00]}  Nc6 {[%clk 0:00:00]} 5. d5 {[%clk 0:00:00]}  Nb8 {[%clk 0:00:00]} 6. Nf3 {[%clk 0:00:00]}  c5 {[%clk 0:00:00]} 7. Be2 {[%clk 0:00:00]}  Nf6 {[%clk 0:00:00]} 8. O-O {[%clk 0:00:00]}  O-O {[%clk 0:00:00]} 9. e5 {[%clk 0:00:00]}  Ne8 {[%clk 0:00:00]} 10. Be3 {[%clk 0:00:00]}  a6 {[%clk 0:00:00]} 11. a4 {[%clk 0:00:00]}  Nd7 {[%clk 0:00:00]} 12. e6 {[%clk 0:00:00]}  fxe6 {[%clk 0:00:00]} 13. dxe6 {[%clk 0:00:00]}  Ndf6 {[%clk 0:00:00]} 14. Bc4 {[%clk 0:00:00]}  Nc7 {[%clk 0:00:00]} 15. Ng5 {[%clk 0:00:00]}  d5 {[%clk 0:00:00]} 16. Nf7 {[%clk 0:00:00]}  Rxf7 {[%clk 0:00:00]} 17. exf7+ {[%clk 0:00:00]}  Kf8 {[%clk 0:00:00]} 18. Bxc5 {[%clk 0:00:00]}  Bg4 {[%clk 0:00:00]} 19. Be2 {[%clk 0:00:00]}  Bf5 {[%clk 0:00:00]} 20. Bf3 {[%clk 0:00:00]}  Kxf7 {[%clk 0:00:00]} 21. Bb6 {[%clk 0:00:00]}  e6 {[%clk 0:00:00]} 22. g4 {[%clk 0:00:00]}  Be4 {[%clk 0:00:00]} 23. Bxe4 {[%clk 0:00:00]}  dxe4 {[%clk 0:00:00]} 24. Qxd8 {[%clk 0:00:00]}  Rxd8 {[%clk 0:00:00]} 25. Bxc7 {[%clk 0:00:00]}  Rd2 {[%clk 0:00:00]} 26. Be5 {[%clk 0:00:00]}  Nxg4 {[%clk 0:00:00]} 27. Bxg7 {[%clk 0:00:00]}  Kxg7 {[%clk 0:00:00]} 28. Nxe4 {[%clk 0:00:00]}  Rxc2 {[%clk 0:00:00]} 29. Nf2 {[%clk 0:00:00]}  Ne3 {[%clk 0:00:00]} 30. Rfe1 {[%clk 0:00:00]}  Nf5 {[%clk 0:00:00]} 31. Rac1 {[%clk 0:00:00]}  Rxb2 {[%clk 0:00:00]} 32. Rb1 {[%clk 0:00:00]}  Ra2 {[%clk 0:00:00]} 33. Rxb7+ {[%clk 0:00:00]}  Kh6 {[%clk 0:00:00]} 34. Ng4+ {[%clk 0:00:00]}  Kh5 {[%clk 0:00:00]} 35. Nf6+ {[%clk 0:00:00]}  Kh6 {[%clk 0:00:00]} 36. Rxh7# {[%clk 0:00:00]} 1-0


[Site "https://www.chess.com"]

[Event "Titled Tuesday Blitz August 16 Late 2022"]
[White "Goldin, Alexander"]
[Black "Akbas, Umut Ata"]
[WhiteFideId "2019540"]
[BlackFideId "44572646"]
[WhiteElo "2591"]
[BlackElo "1654"]
[Result "0-1"]
[Round "04"]
[TimeControl "180+1"]
[Date "2022.08.16"]
[WhiteClock "0:00:03"]
[BlackClock "0:00:44"]

1. d4 {[%clk 0:03:00]}  d5 {[%clk 0:02:57]} 2. c4 {[%clk 0:02:58]}  dxc4 {[%clk 0:02:55]} 3. e3 {[%clk 0:02:58]}  a6 {[%clk 0:02:54]} 4. Bxc4 {[%clk 0:02:55]}  Nf6 {[%clk 0:02:52]} 5. Nf3 {[%clk 0:02:55]}  b5 {[%clk 0:02:52]} 6. Be2 {[%clk 0:02:48]}  Bb7 {[%clk 0:02:51]} 7. O-O {[%clk 0:02:47]}  Nbd7 {[%clk 0:02:52]} 8. b3 {[%clk 0:02:47]}  e6 {[%clk 0:02:52]} 9. Bb2 {[%clk 0:02:47]}  Bd6 {[%clk 0:02:51]} 10. Nbd2 {[%clk 0:02:42]}  O-O {[%clk 0:02:52]} 11. Ne5 {[%clk 0:02:40]}  c5 {[%clk 0:02:48]} 12. Nxd7 {[%clk 0:02:39]}  Nxd7 {[%clk 0:02:44]} 13. Bf3 {[%clk 0:02:25]}  Bxf3 {[%clk 0:02:44]} 14. Nxf3 {[%clk 0:02:21]}  Rc8 {[%clk 0:02:44]} 15. Rc1 {[%clk 0:02:16]}  Qe7 {[%clk 0:02:43]} 16. Qe2 {[%clk 0:01:59]}  e5 {[%clk 0:02:38]} 17. dxc5 {[%clk 0:01:48]}  Nxc5 {[%clk 0:02:34]} 18. Rfd1 {[%clk 0:01:34]}  e4 {[%clk 0:02:33]} 19. Nd4 {[%clk 0:01:10]}  Nd3 {[%clk 0:02:33]} 20. Rxc8 {[%clk 0:01:07]}  Rxc8 {[%clk 0:02:34]} 21. Ba1 {[%clk 0:01:06]}  Be5 {[%clk 0:02:27]} 22. f3 {[%clk 0:01:03]}  Nc5 {[%clk 0:01:50]} 23. Rc1 {[%clk 0:00:42]}  exf3 {[%clk 0:01:30]} 24. Qxf3 {[%clk 0:00:42]}  Qd7 {[%clk 0:01:26]} 25. h3 {[%clk 0:00:24]}  Ne6 {[%clk 0:01:19]} 26. Rd1 {[%clk 0:00:17]}  Bxd4 {[%clk 0:01:14]} 27. Bxd4 {[%clk 0:00:16]}  Rd8 {[%clk 0:01:13]} 28. Rd2 {[%clk 0:00:14]}  h6 {[%clk 0:01:12]} 29. Bc3 {[%clk 0:00:15]}  Qc8 {[%clk 0:01:12]} 30. Rxd8+ {[%clk 0:00:14]}  Qxd8 {[%clk 0:01:13]} 31. e4 {[%clk 0:00:14]}  Qc7 {[%clk 0:01:09]} 32. Qe3 {[%clk 0:00:13]}  Qc6 {[%clk 0:01:07]} 33. e5 {[%clk 0:00:13]}  Qd5 {[%clk 0:01:07]} 34. Kh2 {[%clk 0:00:13]}  g5 {[%clk 0:01:04]} 35. Be1 {[%clk 0:00:14]}  Nf4 {[%clk 0:01:04]} 36. Qg3 {[%clk 0:00:07]}  Qxe5 {[%clk 0:01:04]} 37. Bd2 {[%clk 0:00:08]}  Kh7 {[%clk 0:00:58]} 38. h4 {[%clk 0:00:08]}  Kg6 {[%clk 0:00:57]} 39. hxg5 {[%clk 0:00:08]}  hxg5 {[%clk 0:00:58]} 40. Be3 {[%clk 0:00:08]}  Kf5 {[%clk 0:00:55]} 41. Bd2 {[%clk 0:00:08]}  Qe4 {[%clk 0:00:51]} 42. Bc3 {[%clk 0:00:08]}  Ne2 {[%clk 0:00:44]} 43. Qh3+ {[%clk 0:00:08]}  Kg6 {[%clk 0:00:44]} 44. Bd2 {[%clk 0:00:08]}  Qe5+ {[%clk 0:00:43]} 45. Kh1 {[%clk 0:00:08]}  Ng3+ {[%clk 0:00:43]} 46. Kg1 {[%clk 0:00:03]}  Qd4+ {[%clk 0:00:44]} 47. Kh2 {[%clk 0:00:03]}  Nf1+ {[%clk 0:00:44]} 0-1


[Site "https://www.chess.com"]

[Event "Titled Tuesday Blitz August 16 Late 2022"]
[White "Goltsev, Dmitry"]
[Black "Ambartsumova, Karina"]
[WhiteFideId "24176710"]
[BlackFideId "4166299"]
[WhiteElo "2258"]
[BlackElo "2262"]
[Result "1-0"]
[Round "04"]
[TimeControl "180+1"]
[Date "2022.08.16"]
[WhiteClock "0:01:38"]
[BlackClock "0:00:02"]

1. e4 {[%clk 0:03:00]}  e5 {[%clk 0:02:59]} 2. Nf3 {[%clk 0:03:00]}  Nc6 {[%clk 0:02:58]} 3. Bb5 {[%clk 0:03:01]}  Nf6 {[%clk 0:02:57]} 4. O-O {[%clk 0:03:01]}  Nxe4 {[%clk 0:02:56]} 5. d4 {[%clk 0:03:01]}  Nd6 {[%clk 0:02:56]} 6. Bxc6 {[%clk 0:03:01]}  dxc6 {[%clk 0:02:57]} 7. dxe5 {[%clk 0:03:02]}  Nf5 {[%clk 0:02:58]} 8. Qxd8+ {[%clk 0:03:03]}  Kxd8 {[%clk 0:02:58]} 9. Rd1+ {[%clk 0:03:04]}  Ke8 {[%clk 0:02:58]} 10. Bg5 {[%clk 0:03:04]}  Be6 {[%clk 0:02:51]} 11. Nc3 {[%clk 0:03:05]}  h6 {[%clk 0:02:44]} 12. Bd2 {[%clk 0:03:03]}  Be7 {[%clk 0:02:43]} 13. b3 {[%clk 0:03:00]}  Rd8 {[%clk 0:02:38]} 14. Ne4 {[%clk 0:03:00]}  Rd5 {[%clk 0:02:27]} 15. c4 {[%clk 0:02:58]}  Rd7 {[%clk 0:02:20]} 16. Bc3 {[%clk 0:02:58]}  Kd8 {[%clk 0:02:11]} 17. g4 {[%clk 0:02:53]}  Nh4 {[%clk 0:02:10]} 18. Nxh4 {[%clk 0:02:53]}  Bxh4 {[%clk 0:02:11]} 19. Nc5 {[%clk 0:02:53]}  Rxd1+ {[%clk 0:02:06]} 20. Rxd1+ {[%clk 0:02:54]}  Kc8 {[%clk 0:02:03]} 21. h3 {[%clk 0:02:54]}  Be7 {[%clk 0:01:59]} 22. Nxe6 {[%clk 0:02:53]}  fxe6 {[%clk 0:02:00]} 23. Kg2 {[%clk 0:02:53]}  Rf8 {[%clk 0:01:56]} 24. Kg3 {[%clk 0:02:52]}  Bc5 {[%clk 0:01:36]} 25. f4 {[%clk 0:02:49]}  Be3 {[%clk 0:01:36]} 26. Rf1 {[%clk 0:02:49]}  g5 {[%clk 0:01:35]} 27. f5 {[%clk 0:02:37]}  Bf4+ {[%clk 0:00:54]} 28. Rxf4 {[%clk 0:02:32]}  gxf4+ {[%clk 0:00:55]} 29. Kxf4 {[%clk 0:02:33]}  Kd7 {[%clk 0:00:49]} 30. h4 {[%clk 0:02:30]}  Ke8 {[%clk 0:00:36]} 31. f6 {[%clk 0:02:28]}  Kf7 {[%clk 0:00:35]} 32. h5 {[%clk 0:02:12]}  Rd8 {[%clk 0:00:35]} 33. Ke4 {[%clk 0:02:12]}  Rd1 {[%clk 0:00:34]} 34. Bd4 {[%clk 0:02:09]}  Kg8 {[%clk 0:00:09]} 35. Be3 {[%clk 0:02:04]}  Kh7 {[%clk 0:00:09]} 36. Bxa7 {[%clk 0:01:51]}  b6 {[%clk 0:00:08]} 37. Bb8 {[%clk 0:01:51]}  Rd7 {[%clk 0:00:08]} 38. b4 {[%clk 0:01:50]}  c5 {[%clk 0:00:07]} 39. bxc5 {[%clk 0:01:49]}  bxc5 {[%clk 0:00:08]} 40. a4 {[%clk 0:01:50]}  Rd4+ {[%clk 0:00:08]} 41. Kf3 {[%clk 0:01:49]}  Rxc4 {[%clk 0:00:09]} 42. a5 {[%clk 0:01:48]}  Ra4 {[%clk 0:00:08]} 43. Bxc7 {[%clk 0:01:48]}  Kg8 {[%clk 0:00:08]} 44. Bb6 {[%clk 0:01:44]}  c4 {[%clk 0:00:08]} 45. Be3 {[%clk 0:01:44]}  c3 {[%clk 0:00:08]} 46. Bxh6 {[%clk 0:01:43]}  c2 {[%clk 0:00:08]} 47. g5 {[%clk 0:01:40]}  Rxa5 {[%clk 0:00:08]} 48. g6 {[%clk 0:01:40]}  Ra3+ {[%clk 0:00:02]} 49. Ke2 {[%clk 0:01:38]} 1-0


[Site "https://www.chess.com"]

[Event "Titled Tuesday Blitz August 16 Late 2022"]
[White "Golubev, Mikhail"]
[Black "Zenin, Dmitry"]
[WhiteFideId "14100983"]
[BlackFideId "4127897"]
[WhiteElo "2374"]
[BlackElo "2215"]
[Result "1-0"]
[Round "04"]
[TimeControl "180+1"]
[Date "2022.08.18"]
[WhiteClock "0:00:00"]
[BlackClock "0:00:00"]

1. d4 {[%clk 0:00:00]}  Nf6 {[%clk 0:00:00]} 2. c4 {[%clk 0:00:00]}  g6 {[%clk 0:00:00]} 3. Nc3 {[%clk 0:00:00]}  Bg7 {[%clk 0:00:00]} 4. e4 {[%clk 0:00:00]}  d6 {[%clk 0:00:00]} 5. Be2 {[%clk 0:00:00]}  O-O {[%clk 0:00:00]} 6. Be3 {[%clk 0:00:00]}  e5 {[%clk 0:00:00]} 7. d5 {[%clk 0:00:00]}  Na6 {[%clk 0:00:00]} 8. g4 {[%clk 0:00:00]}  Nc5 {[%clk 0:00:00]} 9. f3 {[%clk 0:00:00]}  a5 {[%clk 0:00:00]} 10. Nh3 {[%clk 0:00:00]}  h5 {[%clk 0:00:00]} 11. Nf2 {[%clk 0:00:00]}  hxg4 {[%clk 0:00:00]} 12. fxg4 {[%clk 0:00:00]}  Nh7 {[%clk 0:00:00]} 13. h4 {[%clk 0:00:00]}  f5 {[%clk 0:00:00]} 14. h5 {[%clk 0:00:00]}  f4 {[%clk 0:00:00]} 15. Bxc5 {[%clk 0:00:00]}  dxc5 {[%clk 0:00:00]} 16. hxg6 {[%clk 0:00:00]}  Ng5 {[%clk 0:00:00]} 17. Bf3 {[%clk 0:00:00]}  Rf6 {[%clk 0:00:00]} 18. Qe2 {[%clk 0:00:00]}  Rxg6 {[%clk 0:00:00]} 19. O-O-O {[%clk 0:00:00]}  Nf7 {[%clk 0:00:00]} 20. Rh5 {[%clk 0:00:00]}  Nd6 {[%clk 0:00:00]} 21. Rdh1 {[%clk 0:00:00]}  Bd7 {[%clk 0:00:00]} 22. Nd3 {[%clk 0:00:00]}  Nxc4 {[%clk 0:00:00]} 23. Nxf4 {[%clk 0:00:00]}  exf4 {[%clk 0:00:00]} 24. Qxc4 {[%clk 0:00:00]}  b5 {[%clk 0:00:00]} 25. Qxc5 {[%clk 0:00:00]}  Qf8 {[%clk 0:00:00]} 26. Qxc7 {[%clk 0:00:00]}  b4 {[%clk 0:00:00]} 27. Qxd7 {[%clk 0:00:00]}  bxc3 {[%clk 0:00:00]} 28. Rh8+ {[%clk 0:00:00]} 1-0


[Site "https://www.chess.com"]

[Event "Titled Tuesday Blitz August 16 Late 2022"]
[White "Goryachkina, Aleksandra"]
[Black "Miszler, Levente"]
[WhiteFideId "4147103"]
[BlackFideId "763276"]
[WhiteElo "2426"]
[BlackElo "1966"]
[Result "1-0"]
[Round "04"]
[TimeControl "180+1"]
[Date "2022.08.18"]
[WhiteClock "0:00:00"]
[BlackClock "0:00:00"]

1. e4 {[%clk 0:00:00]}  e6 {[%clk 0:00:00]} 2. d4 {[%clk 0:00:00]}  d5 {[%clk 0:00:00]} 3. Nc3 {[%clk 0:00:00]}  Nf6 {[%clk 0:00:00]} 4. Bg5 {[%clk 0:00:00]}  Be7 {[%clk 0:00:00]} 5. e5 {[%clk 0:00:00]}  Nfd7 {[%clk 0:00:00]} 6. h4 {[%clk 0:00:00]}  h6 {[%clk 0:00:00]} 7. Bxe7 {[%clk 0:00:00]}  Qxe7 {[%clk 0:00:00]} 8. Qg4 {[%clk 0:00:00]}  O-O {[%clk 0:00:00]} 9. O-O-O {[%clk 0:00:00]}  a6 {[%clk 0:00:00]} 10. f4 {[%clk 0:00:00]}  f5 {[%clk 0:00:00]} 11. exf6 {[%clk 0:00:00]}  Nxf6 {[%clk 0:00:00]} 12. Qf3 {[%clk 0:00:00]}  c5 {[%clk 0:00:00]} 13. dxc5 {[%clk 0:00:00]}  Nbd7 {[%clk 0:00:00]} 14. g4 {[%clk 0:00:00]}  Nxc5 {[%clk 0:00:00]} 15. g5 {[%clk 0:00:00]}  Nfe4 {[%clk 0:00:00]} 16. Nxe4 {[%clk 0:00:00]}  Nxe4 {[%clk 0:00:00]} 17. gxh6 {[%clk 0:00:00]}  gxh6 {[%clk 0:00:00]} 18. Bd3 {[%clk 0:00:00]}  Qf6 {[%clk 0:00:00]} 19. Ne2 {[%clk 0:00:00]}  Bd7 {[%clk 0:00:00]} 20. Bxe4 {[%clk 0:00:00]}  dxe4 {[%clk 0:00:00]} 21. Qg2+ {[%clk 0:00:00]}  Kh8 {[%clk 0:00:00]} 22. Rxd7 {[%clk 0:00:00]}  Rad8 {[%clk 0:00:00]} 23. Rxd8 {[%clk 0:00:00]}  Rxd8 {[%clk 0:00:00]} 24. Qxe4 {[%clk 0:00:00]}  Qg7 {[%clk 0:00:00]} 25. Qe5 {[%clk 0:00:00]}  Rd5 {[%clk 0:00:00]} 26. Qxg7+ {[%clk 0:00:00]}  Kxg7 {[%clk 0:00:00]} 27. Rd1 {[%clk 0:00:00]}  Rh5 {[%clk 0:00:00]} 28. Rd7+ {[%clk 0:00:00]}  Kf6 {[%clk 0:00:00]} 29. Rxb7 {[%clk 0:00:00]}  Rxh4 {[%clk 0:00:00]} 30. c4 {[%clk 0:00:00]}  Rh2 {[%clk 0:00:00]} 31. Kd2 {[%clk 0:00:00]}  h5 {[%clk 0:00:00]} 32. c5 {[%clk 0:00:00]}  h4 {[%clk 0:00:00]} 33. c6 {[%clk 0:00:00]} 1-0


[Site "https://www.chess.com"]

[Event "Titled Tuesday Blitz August 16 Late 2022"]
[White "Grot, Blazej"]
[Black "D`Arruda, Ricardo D."]
[WhiteFideId "21835845"]
[BlackFideId "100692"]
[WhiteElo "1614"]
[BlackElo "2271"]
[Result "0-1"]
[Round "04"]
[TimeControl "180+1"]
[Date "2022.08.18"]
[WhiteClock "0:00:00"]
[BlackClock "0:00:00"]

1. e4 {[%clk 0:00:00]}  c5 {[%clk 0:00:00]} 2. Nc3 {[%clk 0:00:00]}  Nc6 {[%clk 0:00:00]} 3. Bb5 {[%clk 0:00:00]}  e6 {[%clk 0:00:00]} 4. Bxc6 {[%clk 0:00:00]}  bxc6 {[%clk 0:00:00]} 5. d3 {[%clk 0:00:00]}  d5 {[%clk 0:00:00]} 6. f4 {[%clk 0:00:00]}  Nf6 {[%clk 0:00:00]} 7. Nf3 {[%clk 0:00:00]}  Be7 {[%clk 0:00:00]} 8. O-O {[%clk 0:00:00]}  O-O {[%clk 0:00:00]} 9. e5 {[%clk 0:00:00]}  Nd7 {[%clk 0:00:00]} 10. Kh1 {[%clk 0:00:00]}  c4 {[%clk 0:00:00]} 11. f5 {[%clk 0:00:00]}  cxd3 {[%clk 0:00:00]} 12. Qxd3 {[%clk 0:00:00]}  Nc5 {[%clk 0:00:00]} 13. Qe2 {[%clk 0:00:00]}  Ba6 {[%clk 0:00:00]} 14. Qf2 {[%clk 0:00:00]}  Bxf1 {[%clk 0:00:00]} 15. Qxf1 {[%clk 0:00:00]}  exf5 {[%clk 0:00:00]} 16. Be3 {[%clk 0:00:00]}  Ne4 {[%clk 0:00:00]} 17. Nxe4 {[%clk 0:00:00]}  fxe4 {[%clk 0:00:00]} 18. Nd4 {[%clk 0:00:00]}  Qd7 {[%clk 0:00:00]} 19. Qf4 {[%clk 0:00:00]}  f5 {[%clk 0:00:00]} 20. Rf1 {[%clk 0:00:00]}  g6 {[%clk 0:00:00]} 21. Qf2 {[%clk 0:00:00]}  c5 {[%clk 0:00:00]} 22. Qf4 {[%clk 0:00:00]}  cxd4 {[%clk 0:00:00]} 23. Qxf5 {[%clk 0:00:00]}  Rxf5 {[%clk 0:00:00]} 0-1


[Site "https://www.chess.com"]